bitfinex/quotes_BTCUSD_20250904
["timestamp","ask_amount","ask_price","bid_price","bid_amount"]
[1757007052963,0.34414402,109970.0,109960.0,0.18892432]
[1757007055010,0.19110402,109970.0,109960.0,0.18892432]
[1757007055184,0.34410402,109970.0,109960.0,0.18892432]
[1757007055603,0.71959271,109970.0,109960.0,0.18892432]
[1757007055796,0.71035647,109970.0,109960.0,0.18892432]
[1757007056005,0.153,109970.0,109960.0,0.18892432]
[1757007056988,0.33486778,109970.0,109960.0,0.18892432]
[1757007057816,0.33486778,109970.0,109960.0,0.004]
[1757007057817,0.71545647,109970.0,109960.0,0.004]
[1757007058417,0.80737246,109970.0,109960.0,0.002]
[1757007060036,0.83267246,109970.0,109960.0,0.002]
[1757007060581,0.67967246,109970.0,109960.0,0.002]
[1757007060762,0.83267246,109970.0,109960.0,0.002]
[1757007061563,1.20891449,109970.0,109960.0,0.002]
[1757007061927,1.20842095,109970.0,109960.0,0.002]
[1757007062314,1.20842095,109970.0,109960.0,0.001]
[1757007062823,0.18188432,109960.0,109950.0,0.18198605]
[1757007062969,1.02553103,109960.0,109950.0,0.18398605]
[1757007063444,1.17849103,109960.0,109950.0,0.18398605]
[1757007063868,1.18049103,109960.0,109950.0,0.18398605]
[1757007064063,1.18049103,109960.0,109950.0,0.00208547]
[1757007064268,1.18049103,109960.0,109950.0,0.00408547]
[1757007064474,1.18359103,109960.0,109950.0,0.00208547]
[1757007065591,0.42872031,109960.0,109950.0,0.18598633]
[1757007065793,1.18045103,109960.0,109950.0,0.18598633]
[1757007066787,1.18045103,109960.0,109950.0,0.00408547]
[1757007067236,0.80254567,109960.0,109950.0,0.18909633]
[1757007067471,0.80250567,109960.0,109950.0,0.18909633]
[1757007068229,0.27380031,109960.0,109950.0,0.18909633]
[1757007068436,0.80250567,109960.0,109950.0,0.18909633]
[1757007071348,0.18455424,109970.0,109950.0,0.18909633]
[1757007071548,0.1528,109960.0,109950.0,0.18909633]
[1757007071906,0.64915559,109970.0,109960.0,0.18188432]
[1757007072170,0.153,109970.0,109960.0,0.18699432]
[1757007072684,0.52886536,109970.0,109960.0,0.18699432]
[1757007072903,0.71270314,109970.0,109960.0,0.18188432]
[1757007073124,0.71588314,109970.0,109960.0,0.18388432]
[1757007073352,0.55773314,109970.0,109960.0,0.18388432]
[1757007073555,0.15296,109970.0,109960.0,0.18699432]
[1757007073765,0.71069314,109970.0,109960.0,0.18388432]
[1757007074056,0.52882536,109970.0,109960.0,0.18388432]
[1757007074267,0.52882536,109970.0,109960.0,0.18699432]
[1757007075369,0.63741101,109980.0,109970.0,0.18186778]
[1757007075548,0.884217,109980.0,109970.0,0.18186778]
[1757007076387,0.50835164,109980.0,109960.0,0.18699432]
[1757007076591,0.18186778,109970.0,109960.0,0.18699432]
[1757007076749,0.731297,109980.0,109970.0,0.18186778]
[1757007076947,0.882327,109980.0,109970.0,0.18186778]
[1757007077162,1.26016236,109980.0,109970.0,0.18386778]
[1757007077374,1.10716236,109980.0,109970.0,0.18386778]
[1757007077556,0.881117,109980.0,109970.0,0.18386778]
[1757007077756,0.80463166,109980.0,109970.0,0.18386778]
[1757007078007,0.6398893,109990.0,109970.0,0.18386778]
[1757007078166,0.7107166,109980.0,109970.0,0.18697778]
[1757007078388,0.7126866,109980.0,109970.0,0.18386778]
[1757007078562,0.34000124,109980.0,109970.0,0.18386778]
[1757007078809,0.34000124,109980.0,109970.0,0.18186778]
[1757007078810,0.7158666,109980.0,109970.0,0.18186778]
[1757007080902,0.7158666,109980.0,109970.0,0.18386778]
[1757007081106,0.7158666,109980.0,109970.0,0.18186778]
[1757007082330,0.34000124,109980.0,109970.0,0.18186778]
[1757007082533,0.7158666,109980.0,109970.0,0.18186778]
[1757007085247,0.34000124,109980.0,109970.0,0.18186778]
[1757007085452,0.7158666,109980.0,109970.0,0.18186778]
[1757007087285,0.34000124,109980.0,109970.0,0.18386778]
[1757007087487,0.7158666,109980.0,109970.0,0.18386778]
[1757007088369,0.34000124,109980.0,109970.0,0.18386778]
[1757007088573,0.7158666,109980.0,109970.0,0.18386778]
[1757007089311,0.7158666,109980.0,109970.0,0.18186778]
[1757007089515,0.7156666,109980.0,109970.0,0.18186778]
[1757007089748,0.7156666,109980.0,109970.0,0.18386778]
[1757007091062,0.19434854,109990.0,109980.0,0.18185124]
[1757007091301,0.19116854,109990.0,109980.0,0.18696124]
[1757007091481,0.7198339,109990.0,109980.0,0.18696124]
[1757007091654,0.53799919,109990.0,109980.0,0.18696124]
[1757007091863,0.7198339,109990.0,109980.0,0.18696124]
[1757007092711,0.1528,109990.0,109980.0,0.18696124]
[1757007093572,0.33463471,109990.0,109980.0,0.18696124]
[1757007093777,0.71050007,109990.0,109980.0,0.2142979]
[1757007094454,0.72170191,109990.0,109980.0,0.2111879]
[1757007094661,0.5378972,109990.0,109980.0,0.2142979]
[1757007095435,0.71973191,109990.0,109980.0,0.2142979]
[1757007095859,0.71973191,109990.0,109980.0,0.2111879]
[1757007096056,0.72182191,109990.0,109980.0,0.2111879]
[1757007096357,0.71973191,109990.0,109980.0,0.2111879]
[1757007097387,0.72182191,109990.0,109980.0,0.2111879]
[1757007099670,0.53075536,109990.0,109980.0,0.2111879]
[1757007099888,0.71050007,109990.0,109980.0,0.2111879]
[1757007100640,0.71259007,109990.0,109980.0,0.2111879]
[1757007100831,0.72497422,109990.0,109980.0,0.2111879]
[1757007101667,0.34910886,109990.0,109980.0,0.2111879]
[1757007103585,0.34906886,109990.0,109980.0,0.2111879]
[1757007107725,0.34906886,109990.0,109980.0,0.2091879]
[1757007108588,0.34906886,109990.0,109980.0,0.02733666]
[1757007109443,0.72493422,109990.0,109980.0,0.02733666]
[1757007109639,0.72184422,109990.0,109980.0,0.21350104]
[1757007109770,0.19321886,109990.0,109980.0,0.2112279]
[1757007109979,0.54000951,109990.0,109980.0,0.2112279]
[1757007110195,0.37586536,109990.0,109980.0,0.2144079]
[1757007110421,0.33766818,110000.0,109990.0,0.18183471]
[1757007110592,0.72510014,110000.0,109990.0,0.18183471]
[1757007111241,0.72510014,110000.0,109990.0,0.33663471]
[1757007111608,0.72514708,110000.0,109990.0,0.33663471]
[1757007113076,0.72514708,110000.0,109990.0,0.15276]
[1757007113279,0.18183471,109990.0,109980.0,0.3651279]
[1757007113487,0.18183471,109990.0,109980.0,0.2123679]
[1757007113689,0.18183471,109990.0,109980.0,0.3671679]
[1757007114102,0.55770007,109990.0,109980.0,0.3671679]
[1757007114527,0.55770007,109990.0,109980.0,0.2144079]
[1757007114728,0.55770007,109990.0,109980.0,0.3639879]
[1757007115839,0.18183471,109990.0,109980.0,0.3639879]
[1757007117562,0.57029708,110000.0,109990.0,0.18183471]
[1757007117788,0.34928172,110000.0,109990.0,0.18183471]
[1757007118010,0.72514708,110000.0,109990.0,0.18183471]
[1757007118248,0.72514708,110000.0,109990.0,0.02733436]
[1757007118456,0.72514708,110000.0,109990.0,0.211442]
[1757007118667,0.72514708,110000.0,109990.0,0.02733436]
[1757007119147,1.10101244,110000.0,109990.0,0.02733436]
[1757007122153,0.00909173,109990.0,109950.0,0.5979959]
[1757007122366,0.7135666,109980.0,109970.0,0.18186778]
[1757007122622,0.7156566,109980.0,109970.0,0.02733833]
[1757007123665,0.71551586,109980.0,109970.0,0.02733833]
[1757007124104,0.71551586,109980.0,109970.0,0.02833833]
[1757007124536,1.20831647,109980.0,109970.0,0.02833833]
[1757007125194,1.20831647,109980.0,109970.0,0.02933833]
[1757007125853,1.20831647,109980.0,109970.0,0.002]
[1757007128309,0.18186778,109970.0,109960.0,0.02734204]
[1757007128517,0.5605424,109970.0,109960.0,0.02734204]
[1757007128711,0.5626524,109970.0,109960.0,0.02734204]
[1757007129597,0.5626524,109970.0,109960.0,0.02834204]
[1757007130387,0.5626524,109970.0,109960.0,0.02934204]
[1757007130587,0.65456839,109970.0,109960.0,0.02934204]
[1757007130825,0.67983839,109970.0,109960.0,0.02934204]
[1757007131040,0.67983839,109970.0,109960.0,0.002]
[1757007132141,0.45687377,109970.0,109960.0,0.002]
[1757007132353,0.83259839,109970.0,109960.0,0.001]
[1757007132760,0.67983839,109970.0,109960.0,0.001]
[1757007132954,0.83259839,109970.0,109960.0,0.001]
[1757007133201,0.18188432,109960.0,109950.0,0.20924296]
[1757007133426,0.37572462,109960.0,109950.0,0.21436296]
[1757007133634,0.18188432,109960.0,109950.0,0.21436296]
[1757007134454,0.18193124,109960.0,109950.0,0.21436296]
[1757007135284,0.18193124,109960.0,109950.0,0.21536296]
[1757007135548,0.18193124,109960.0,109950.0,0.21636296]
[1757007136042,4.692e-05,109960.0,109950.0,0.21636296]
[1757007136463,4.692e-05,109960.0,109950.0,0.59208758]
[1757007136916,4.692e-05,109960.0,109950.0,0.21636296]
[1757007138281,4.692e-05,109960.0,109950.0,0.65908758]
[1757007138742,4.692e-05,109960.0,109950.0,0.28336296]
[1757007139724,4.692e-05,109960.0,109950.0,0.65908758]
[1757007139924,4.692e-05,109960.0,109950.0,0.28336296]
[1757007140961,4.692e-05,109960.0,109950.0,0.43612296]
[1757007141369,4.692e-05,109960.0,109950.0,0.81184758]
[1757007144644,4.692e-05,109960.0,109950.0,0.43612296]
[1757007144860,4.692e-05,109960.0,109950.0,0.81184758]
[1757007145904,0.35602799,109980.0,109970.0,0.18186778]
[1757007146046,0.35818494,109980.0,109970.0,0.18186778]
[1757007146250,0.35818494,109980.0,109970.0,0.33462778]
[1757007146455,0.35818494,109980.0,109970.0,0.36196748]
[1757007147425,0.35818443,109980.0,109970.0,0.36406748]
[1757007147811,0.00510695,109980.0,109970.0,0.36406748]
[1757007148219,0.18695819,109980.0,109970.0,0.36406748]
[1757007148924,0.18400819,109980.0,109970.0,0.36406748]
[1757007150611,0.18695819,109980.0,109970.0,0.36406748]
[1757007151299,0.18695819,109980.0,109970.0,0.20920748]
[1757007151508,0.18695819,109980.0,109970.0,0.1800997]
[1757007151876,0.18695819,109980.0,109970.0,0.36196748]
[1757007152516,0.56268281,109980.0,109970.0,0.36196748]
[1757007153633,0.18695819,109980.0,109970.0,0.36196748]
[1757007154628,0.18695819,109980.0,109970.0,0.20920748]
[1757007154799,0.56268281,109980.0,109970.0,0.36196748]
[1757007155153,0.38083157,109980.0,109970.0,0.36196748]
[1757007155527,0.56268281,109980.0,109970.0,0.36406748]
[1757007156142,0.56268281,109980.0,109970.0,0.36196748]
[1757007157134,0.56268281,109980.0,109970.0,0.1800997]
[1757007157333,1.05379342,109980.0,109970.0,0.0273397]
[1757007157896,0.18186778,109970.0,109960.0,0.33464379]
[1757007158151,0.5626524,109970.0,109960.0,0.36198568]
[1757007158350,0.38078462,109970.0,109960.0,0.36198568]
[1757007158748,0.00506,109970.0,109960.0,0.36198568]
[1757007159977,0.00506,109970.0,109960.0,0.36411568]
[1757007160340,0.00208,109970.0,109960.0,0.36411568]
[1757007162695,0.18692778,109970.0,109960.0,0.20922568]
[1757007162901,0.5626524,109970.0,109960.0,0.36194568]
[1757007163082,0.5626524,109970.0,109960.0,0.18006189]
[1757007163288,0.18692778,109970.0,109960.0,0.36194621]
[1757007163506,0.5626524,109970.0,109960.0,0.18006189]
[1757007163913,0.5626524,109970.0,109960.0,0.36194621]
[1757007164112,0.5626524,109970.0,109960.0,0.20922621]
[1757007164321,0.18692778,109970.0,109960.0,0.36194621]
[1757007164483,0.00506,109970.0,109960.0,0.36407621]
[1757007164691,0.38078462,109970.0,109960.0,0.36194621]
[1757007164923,0.19618724,109970.0,109960.0,0.36194621]
[1757007165101,0.00208,109970.0,109960.0,0.36722621]
[1757007165407,0.18394778,109970.0,109960.0,0.36722621]
[1757007165616,0.00208,109970.0,109960.0,0.36722621]
[1757007166442,0.45000418,109980.0,109970.0,0.18186778]
[1757007166595,0.8022588,109980.0,109970.0,0.18714778]
[1757007167162,0.8042388,109980.0,109970.0,0.18714778]
[1757007168550,0.6515188,109980.0,109970.0,0.18714778]
[1757007168751,0.15276695,109980.0,109970.0,0.18714778]
[1757007169640,0.15276695,109980.0,109970.0,0.21448695]
[1757007170735,4.695e-05,109980.0,109970.0,0.21448695]
[1757007172296,0.55961281,109980.0,109970.0,0.20920695]
[1757007172434,0.55961281,109980.0,109970.0,0.36192695]
[1757007172631,0.55961281,109980.0,109970.0,0.20920695]
[1757007172834,0.6515288,109980.0,109970.0,0.02733917]
[1757007173169,0.18186778,109970.0,109960.0,0.33460432]
[1757007173375,0.18186778,109970.0,109960.0,0.36509649]
[1757007173586,0.5595924,109970.0,109960.0,0.36722649]
[1757007174554,0.5595924,109970.0,109960.0,0.36194649]
[1757007174779,0.5595924,109970.0,109960.0,0.36407649]
[1757007175013,0.5595924,109970.0,109960.0,0.36722649]
[1757007176462,0.7123124,109970.0,109960.0,0.20922649]
[1757007176670,0.7123124,109970.0,109960.0,0.36194649]
[1757007176866,0.33658778,109970.0,109960.0,0.36722649]
[1757007177080,0.5595924,109970.0,109960.0,0.36722649]
[1757007177908,0.18386778,109970.0,109960.0,0.36722649]
[1757007179507,0.65438839,109970.0,109960.0,0.18006217]
[1757007179716,0.65438839,109970.0,109960.0,0.18034217]
[1757007179717,0.67785839,109970.0,109960.0,0.18034217]
[1757007179924,0.67785839,109970.0,109960.0,0.153]
[1757007181075,0.18188432,109960.0,109950.0,0.28533943]
[1757007181277,0.18188432,109960.0,109950.0,0.43833943]
[1757007181514,0.18389432,109960.0,109950.0,0.44361943]
[1757007182280,0.18188432,109960.0,109950.0,0.44361943]
[1757007182495,0.29725377,109970.0,109960.0,0.18188432]
[1757007182708,0.67495839,109970.0,109960.0,0.18401432]
[1757007182916,0.64950839,109970.0,109960.0,0.18716432]
[1757007183568,0.27378377,109970.0,109960.0,0.18716432]
[1757007184640,0.18189819,109980.0,109960.0,0.18716432]
[1757007184813,0.27381418,109980.0,109970.0,0.153]
[1757007185050,0.6495388,109980.0,109970.0,0.34014778]
[1757007185436,0.27381418,109980.0,109970.0,0.34014778]
[1757007185642,0.09196294,109980.0,109970.0,0.34014778]
[1757007185863,0.27381418,109980.0,109970.0,0.34014778]
[1757007186064,0.09196294,109980.0,109970.0,0.34014778]
[1757007186477,0.27381418,109980.0,109970.0,0.18714778]
[1757007186632,0.27381418,109980.0,109970.0,0.34018778]
[1757007186836,0.64950603,109980.0,109970.0,0.34018778]
[1757007187253,0.46765479,109980.0,109970.0,0.34018778]
[1757007188097,0.64950603,109980.0,109970.0,0.34018778]
[1757007188312,0.64950603,109980.0,109970.0,0.34046778]
[1757007188514,0.64950603,109980.0,109970.0,0.00528]
[1757007188724,0.64950603,109980.0,109970.0,0.34042778]
[1757007189341,0.09196294,109980.0,109970.0,0.34042778]
[1757007189546,0.46765479,109980.0,109970.0,0.34042778]
[1757007189968,0.09196294,109980.0,109970.0,0.34042778]
[1757007190160,0.46765479,109980.0,109970.0,0.34042778]
[1757007190387,0.09196294,109980.0,109970.0,0.34042778]
[1757007190934,0.46765479,109980.0,109970.0,0.34042778]
[1757007191143,0.09196294,109980.0,109970.0,0.34042778]
[1757007191342,0.27381418,109980.0,109970.0,0.34042778]
[1757007193110,0.09312718,109980.0,109970.0,0.34042778]
[1757007198062,0.34411424,109990.0,109970.0,0.71611963]
[1757007198268,0.71980609,109990.0,109980.0,0.00311]
[1757007198493,0.72178609,109990.0,109980.0,0.00516]
[1757007198691,0.72178609,109990.0,109970.0,0.74137375]
[1757007198895,0.18185124,109980.0,109970.0,0.2124019]
[1757007199092,0.18185124,109980.0,109970.0,0.3655619]
[1757007199292,0.18185124,109980.0,109970.0,0.3676119]
[1757007200256,0.18185124,109980.0,109970.0,0.2144519]
[1757007200466,0.18383124,109980.0,109970.0,0.3675719]
[1757007200911,0.55952309,109980.0,109970.0,0.3675719]
[1757007201252,0.18383124,109980.0,109970.0,0.3675719]
[1757007201448,0.00198,109980.0,109970.0,0.3675719]
[1757007201687,0.71980609,109990.0,109970.0,0.3675719]
[1757007201868,0.18185124,109980.0,109970.0,0.3675719]
[1757007203437,0.18383124,109980.0,109970.0,0.18570412]
[1757007203625,0.55952309,109980.0,109970.0,0.3675719]
[1757007204439,0.55952309,109980.0,109970.0,0.18570412]
[1757007204903,0.18185124,109980.0,109970.0,0.03258412]
[1757007205094,0.55952309,109980.0,109970.0,0.18570412]
[1757007205846,0.55952309,109980.0,109970.0,0.18054412]
[1757007206061,0.93810494,109980.0,109970.0,0.18054412]
[1757007206276,0.93810494,109980.0,109970.0,0.02742412]
[1757007206495,0.96270494,109980.0,109970.0,0.02742412]
[1757007206714,1.43031278,109980.0,109970.0,8.547e-05]
[1757007206925,1.46277987,109980.0,109970.0,8.547e-05]
[1757007207560,1.50977457,109980.0,109970.0,8.547e-05]
[1757007209045,1.53071339,109980.0,109970.0,8.547e-05]
[1757007209252,1.99832123,109980.0,109970.0,8.547e-05]
[1757007209470,2.02289218,109980.0,109970.0,8.547e-05]
[1757007209684,1.80044033,109980.0,109970.0,8.547e-05]
[1757007210211,1.77586938,109980.0,109970.0,8.547e-05]
[1757007211721,1.80044033,109980.0,109970.0,8.547e-05]
[1757007212406,1.64720033,109980.0,109970.0,8.547e-05]
[1757007212611,1.68391339,109980.0,109970.0,8.547e-05]
[1757007212990,1.53071339,109980.0,109970.0,8.547e-05]
[1757007213164,1.68403339,109980.0,109970.0,8.547e-05]
[1757007214516,1.53071339,109980.0,109970.0,8.547e-05]
[1757007214766,1.68403339,109980.0,109970.0,8.547e-05]
[1757007214968,1.6515663,109980.0,109970.0,8.547e-05]
[1757007215985,1.74348229,109980.0,109970.0,8.547e-05]
[1757007216743,1.59016229,109980.0,109970.0,8.547e-05]
[1757007217110,0.52152075,109980.0,109970.0,8.547e-05]
[1757007217335,1.27290445,109980.0,109970.0,8.547e-05]
[1757007217529,1.12255445,109980.0,109970.0,8.547e-05]
[1757007217755,1.6515263,109980.0,109970.0,8.547e-05]
[1757007218873,1.6514863,109980.0,109970.0,8.547e-05]
[1757007219496,1.72213135,109980.0,109970.0,8.547e-05]
[1757007220009,1.56889135,109980.0,109970.0,8.547e-05]
[1757007220201,1.72213135,109980.0,109970.0,8.547e-05]
[1757007220498,1.63183698,109980.0,109970.0,8.547e-05]
[1757007221107,1.25325513,109980.0,109970.0,8.547e-05]
[1757007221310,1.25614513,109980.0,109970.0,8.547e-05]
[1757007222010,1.27573699,109980.0,109970.0,8.547e-05]
[1757007222378,1.30820408,109980.0,109970.0,8.547e-05]
[1757007222941,0.40069038,109980.0,109970.0,8.547e-05]
[1757007223123,1.30531408,109980.0,109970.0,8.547e-05]
[1757007223320,1.28572222,109980.0,109970.0,8.547e-05]
[1757007224216,1.30531451,109980.0,109970.0,8.547e-05]
[1757007224804,1.30820451,109980.0,109970.0,8.547e-05]
[1757007225762,1.30531451,109980.0,109970.0,8.547e-05]
[1757007235249,1.32988546,109980.0,109970.0,8.547e-05]
[1757007237385,1.33628637,109980.0,109970.0,8.547e-05]
[1757007238300,1.18304637,109980.0,109970.0,8.547e-05]
[1757007238500,1.15006546,109980.0,109970.0,0.00504547]
[1757007238675,1.27051837,109980.0,109970.0,0.00504547]
[1757007239085,1.09025299,109980.0,109970.0,0.00504547]
[1757007239294,1.11178322,109980.0,109970.0,0.00504547]
[1757007239493,0.36039952,109980.0,109970.0,0.00504547]
[1757007239713,0.71649908,109980.0,109970.0,0.00504547]
[1757007239955,1.24515093,109980.0,109970.0,0.00504547]
[1757007240146,0.49376723,109980.0,109970.0,0.00504547]
[1757007240346,1.24515093,109980.0,109970.0,0.00504547]
[1757007240575,0.49376723,109980.0,109970.0,0.00504547]
[1757007240805,1.24515093,109980.0,109970.0,0.00504547]
[1757007242864,1.24713093,109980.0,109970.0,0.00504547]
[1757007244607,1.24713093,109980.0,109970.0,8.547e-05]
[1757007244833,1.24713093,109980.0,109970.0,0.00208547]
[1757007245069,1.24515093,109980.0,109970.0,0.00208547]
[1757007245302,1.24515093,109980.0,109970.0,0.00504547]
[1757007247107,1.09219093,109980.0,109970.0,0.00504547]
[1757007247455,0.49392723,109980.0,109970.0,0.00504547]
[1757007247693,0.86970327,109980.0,109970.0,0.00504547]
[1757007248362,0.71658327,109980.0,109970.0,0.00504547]
[1757007248602,0.86966327,109980.0,109970.0,0.00504547]
[1757007249680,0.49388723,109980.0,109970.0,0.00504547]
[1757007250121,0.86966327,109980.0,109970.0,0.00504547]
[1757007251558,0.80270327,109980.0,109970.0,0.00504547]
[1757007252243,0.71078728,109980.0,109970.0,0.18691325]
[1757007252438,0.71078728,109980.0,109970.0,0.00504547]
[1757007253011,0.71078728,109980.0,109970.0,0.18691325]
[1757007253498,0.37577604,109980.0,109970.0,0.18691325]
[1757007253644,0.52889604,109980.0,109970.0,0.18691325]
[1757007253829,0.15312,109980.0,109970.0,0.18691325]
[1757007254030,0.63645424,109990.0,109980.0,0.18185124]
[1757007254245,1.01223028,109990.0,109980.0,0.00519]
[1757007254453,1.16539028,109990.0,109980.0,0.00519]
[1757007255876,0.18185124,109980.0,109970.0,8.547e-05]
[1757007256089,1.2109464,109980.0,109970.0,8.547e-05]
[1757007256299,1.2158064,109980.0,109970.0,8.547e-05]
[1757007256534,1.2419264,109980.0,109970.0,8.547e-05]
[1757007256738,1.3089664,109980.0,109970.0,8.547e-05]
[1757007257880,1.3089664,109980.0,109970.0,0.00208547]
[1757007258083,1.3089664,109980.0,109970.0,0.00108547]
[1757007258554,1.3089664,109980.0,109970.0,8.547e-05]
[1757007259572,1.3060664,109980.0,109970.0,8.547e-05]
[1757007260552,1.3089664,109980.0,109970.0,8.547e-05]
[1757007260935,1.32990522,109980.0,109970.0,8.547e-05]
[1757007261916,1.34953063,109980.0,109970.0,8.547e-05]
[1757007262320,1.40566188,109980.0,109970.0,8.547e-05]
[1757007263260,1.43300923,109980.0,109970.0,8.547e-05]
[1757007266567,1.37687798,109980.0,109970.0,8.547e-05]
[1757007269261,1.37683798,109980.0,109970.0,8.547e-05]
[1757007273230,1.22371798,109980.0,109970.0,8.547e-05]
[1757007273424,1.37695798,109980.0,109970.0,8.547e-05]
[1757007274904,1.22371798,109980.0,109970.0,8.547e-05]
[1757007275051,1.46887397,109980.0,109970.0,8.547e-05]
[1757007277292,1.46883397,109980.0,109970.0,8.547e-05]
[1757007277977,1.37687798,109980.0,109970.0,8.547e-05]
[1757007279374,1.37397798,109980.0,109970.0,8.547e-05]
[1757007280535,1.22081798,109980.0,109970.0,8.547e-05]
[1757007280763,1.37397798,109980.0,109970.0,8.547e-05]
[1757007281806,1.37687798,109980.0,109970.0,8.547e-05]
[1757007282651,1.46879397,109980.0,109970.0,8.547e-05]
[1757007284021,1.84457001,109980.0,109970.0,8.547e-05]
[1757007284231,1.86914096,109980.0,109970.0,8.547e-05]
[1757007284439,1.90818647,109980.0,109970.0,8.547e-05]
[1757007285484,1.75502647,109980.0,109970.0,8.547e-05]
[1757007285685,1.90814647,109980.0,109970.0,8.547e-05]
[1757007285895,1.87549289,109980.0,109970.0,8.547e-05]
[1757007286095,1.34020492,109980.0,109970.0,8.547e-05]
[1757007286306,1.49681794,109980.0,109970.0,8.547e-05]
[1757007286947,1.49971794,109980.0,109970.0,8.547e-05]
[1757007287766,1.49681794,109980.0,109970.0,8.547e-05]
[1757007288164,1.53237387,109980.0,109970.0,8.547e-05]
[1757007288388,1.53237638,109980.0,109970.0,8.547e-05]
[1757007289366,1.52947638,109980.0,109970.0,8.547e-05]
[1757007290694,1.53237638,109980.0,109970.0,8.547e-05]
[1757007291802,1.52947638,109980.0,109970.0,8.547e-05]
[1757007295958,1.52947638,109980.0,109970.0,0.00518547]
[1757007296160,1.40924039,109980.0,109970.0,0.00518547]
[1757007296505,1.3767733,109980.0,109970.0,0.00518547]
[1757007297318,1.3787533,109980.0,109970.0,0.00518547]
[1757007297548,1.35583448,109980.0,109970.0,0.00518547]
[1757007297723,1.3767733,109980.0,109970.0,0.00518547]
[1757007297922,1.34411737,109980.0,109970.0,0.00518547]
[1757007298221,1.2238933,109980.0,109970.0,0.00518547]
[1757007298399,1.3767733,109980.0,109970.0,0.00518547]
[1757007298608,1.34411737,109980.0,109970.0,0.00518547]
[1757007300294,1.33772184,109980.0,109970.0,0.00518547]
[1757007301444,1.37018893,109980.0,109970.0,0.00518547]
[1757007301673,1.37659075,109980.0,109970.0,0.00518547]
[1757007301911,1.37018893,109980.0,109970.0,0.00518547]
[1757007303877,1.3785805,109980.0,109970.0,0.00518547]
[1757007304081,1.38920615,109980.0,109970.0,8.547e-05]
[1757007304282,1.42474208,109980.0,109970.0,8.547e-05]
[1757007304505,1.80051812,109980.0,109970.0,8.547e-05]
[1757007304914,1.42474208,109980.0,109970.0,8.547e-05]
[1757007305946,1.41834051,109980.0,109970.0,8.547e-05]
[1757007306202,1.82490829,109980.0,109970.0,8.547e-05]
[1757007306367,1.55559467,109980.0,109970.0,8.547e-05]
[1757007306577,1.73744591,109980.0,109970.0,8.547e-05]
[1757007307477,2.86620185,109980.0,109970.0,8.547e-05]
[1757007309507,2.8907728,109980.0,109970.0,8.547e-05]
[1757007312831,2.9866728,109980.0,109970.0,8.547e-05]
[1757007313063,2.8907728,109980.0,109970.0,8.547e-05]
[1757007315342,2.89083226,109980.0,109970.0,8.547e-05]
[1757007316463,2.92348819,109980.0,109970.0,8.547e-05]
[1757007319930,1.78194051,109980.0,109970.0,0.00529547]
[1757007320400,1.75755051,109980.0,109970.0,0.00529547]
[1757007321100,0.44217139,109980.0,109970.0,0.00529547]
[1757007321247,1.72309342,109980.0,109970.0,0.00529547]
[1757007322912,1.69043749,109980.0,109970.0,0.00529547]
[1757007323337,1.68403575,109980.0,109970.0,0.00529547]
[1757007323554,1.26249635,109980.0,109970.0,0.00529547]
[1757007325694,1.63851036,109980.0,109970.0,0.00529547]
[1757007327358,1.26249635,109980.0,109970.0,0.00529547]
[1757007327904,1.63851036,109980.0,109970.0,0.00529547]
[1757007330028,0.51046833,109980.0,109970.0,0.00529547]
[1757007330236,1.2428271,109980.0,109970.0,0.00529547]
[1757007330644,0.49079908,109980.0,109970.0,0.00529547]
[1757007330852,1.2428271,109980.0,109970.0,0.00529547]
[1757007331062,1.21547975,109980.0,109970.0,0.00529547]
[1757007335512,1.18534672,109980.0,109970.0,0.00529547]
[1757007338352,1.03246672,109980.0,109970.0,0.00529547]
[1757007338522,1.18530672,109980.0,109970.0,0.00529547]
[1757007339968,1.03246672,109980.0,109970.0,0.00529547]
[1757007340171,1.18530672,109980.0,109970.0,0.00529547]
[1757007343909,0.4332787,109980.0,109970.0,0.00529547]
[1757007344111,0.94055073,109980.0,109970.0,0.00529547]
[1757007344429,1.02635073,109980.0,109970.0,0.00529547]
[1757007345057,0.27432271,109980.0,109970.0,0.00529547]
[1757007345238,1.02635073,109980.0,109970.0,0.00529547]
[1757007346354,1.02635073,109980.0,109970.0,0.00629547]
[1757007346761,0.87351073,109980.0,109970.0,0.18816325]
[1757007346964,0.33469124,109980.0,109970.0,0.18816325]
[1757007347162,0.71070525,109980.0,109970.0,0.0336346]
[1757007347379,1.08671926,109980.0,109970.0,0.03590794]
[1757007347580,1.08671926,109980.0,109970.0,0.21777572]
[1757007347903,1.08671926,109980.0,109970.0,0.0336346]
[1757007348104,1.08671926,109980.0,109970.0,0.21777572]
[1757007348314,1.08671926,109980.0,109970.0,0.21550238]
[1757007348514,0.71070525,109980.0,109970.0,0.21550238]
[1757007348762,1.08671926,109980.0,109970.0,0.21550238]
[1757007348971,0.75202802,109980.0,109970.0,0.21550238]
[1757007349145,0.37601401,109980.0,109970.0,0.21550238]
[1757007349732,0.33470251,109990.0,109970.0,0.21550238]
[1757007350047,0.33470251,109990.0,109980.0,0.00530314]
[1757007350048,0.18186251,109990.0,109980.0,0.00530314]
[1757007350223,0.33470251,109990.0,109980.0,0.00745314]
[1757007350403,0.33470251,109990.0,109980.0,0.03479055]
[1757007351015,0.71071652,109990.0,109980.0,0.03479055]
[1757007351234,0.55787652,109990.0,109980.0,0.21664179]
[1757007351589,0.55787652,109990.0,109980.0,0.21436865]
[1757007351764,0.55787652,109990.0,109980.0,0.03251741]
[1757007351903,0.18186251,109990.0,109980.0,0.03479055]
[1757007352112,0.55787652,109990.0,109980.0,0.03479055]
[1757007352999,0.55787652,109990.0,109980.0,0.21664179]
[1757007353282,0.55787652,109990.0,109980.0,0.21436865]
[1757007354022,0.55787652,109990.0,109980.0,0.03351741]
[1757007354224,0.55787652,109990.0,109980.0,0.21864179]
[1757007354532,0.55787652,109990.0,109980.0,0.21636865]
[1757007357139,0.18186251,109990.0,109980.0,0.21636865]
[1757007357288,0.55787652,109990.0,109980.0,0.21636865]
[1757007360020,0.55787652,109990.0,109980.0,0.36916865]
[1757007360650,0.18186251,109990.0,109980.0,0.36916865]
[1757007360870,0.55787652,109990.0,109980.0,0.36916865]
[1757007361021,0.55985652,109990.0,109980.0,0.03451741]
[1757007361221,0.93587053,109990.0,109980.0,0.02933741]
[1757007361423,1.08867053,109990.0,109980.0,0.02933741]
[1757007361624,1.08867053,109990.0,109980.0,0.03451741]
[1757007361852,1.08867053,109990.0,109980.0,0.02933741]
[1757007363357,1.09156053,109990.0,109980.0,0.02933741]
[1757007363935,1.09156053,109990.0,109980.0,0.002]
[1757007368832,1.08867053,109990.0,109980.0,0.002]
[1757007369583,0.71237449,109990.0,109980.0,0.002]
[1757007370705,0.55957449,109990.0,109980.0,0.00729]
[1757007370990,0.71039449,109990.0,109980.0,0.00729]
[1757007371153,0.71237449,109990.0,109980.0,0.002]
[1757007372231,0.55957449,109990.0,109980.0,0.002]
[1757007372454,0.71241449,109990.0,109980.0,0.00729]
[1757007373499,0.55957449,109990.0,109980.0,0.00729]
[1757007373705,0.71043449,109990.0,109980.0,0.00729]
[1757007373982,0.71241449,109990.0,109980.0,0.00729]
[1757007374786,0.53055198,109990.0,109980.0,0.002]
[1757007375016,0.71529173,109990.0,109980.0,0.002]
[1757007376370,1.11639371,109990.0,109980.0,0.002]